[Event "4NCL Div 1 2018-19"]
[Site "Telford"]
[Date "2019.02.10"]
[Round "6.21"]
[White "Blackburn, Jonathan L B"]
[Black "Stork, Oliver"]
[Result "1/2-1/2"]
[ECO "D58"]
[WhiteElo "2212"]
[BlackElo "2197"]
[Annotator "NA"]
[PlyCount "71"]
[EventDate "2018.11.10"]
[EventType "team-tourn"]
[EventCountry "GBR"]
[SourceTitle "playchess.com"]
[Source "ChessBase"]
[SourceQuality "1"]
[TimeControl "40/6000+30:3000+30"]

1. d4 {[%emt 0:00:00]} d5 {[%emt 0:00:00]} 2. c4 {[%emt 0:00:00]} e6 {[%emt 0:00:00]} 3. Nc3 {[%emt 0:00:00]} Be7 {[%emt 0:00:00]} 4. Nf3 {[%emt 0:00:06]} Nf6 {[%emt 0:00:00]} 5. Bg5 {[%emt 0:00:27]} O-O {[%emt 0:00:05]} 6. e3 {[%emt 0:00:40]} h6 {[%emt 0:00:07]} 7. Bh4 {[%emt 0:00:19]} b6 {[%emt 0:00:08]} 8. Bxf6 {[%emt 0:00:12]} Bxf6 {[%emt 0:00:08]} 9. cxd5 {[%emt 0:00:19]} exd5 {[%emt 0:00:08]} 10. Be2 {[%emt 0:02:13]} Be6 {[%emt 0:01:53]} 11. O-O {[%emt 0:04:15]} c5 {[%emt 0:07:55]} 12. Rc1 {[%emt 0:02:13]} Nc6 {[%emt 0:24:00]} 13. Qa4 {[%emt 0:25:11]} cxd4 {[%emt 0:09:22]} 14. Qxc6 {[%emt 0:18:39]} dxc3 {[%emt 0:01:45]} 15. bxc3 {[%emt 0:00:07]} Rc8 {[%emt 0:20:11]} 16. Qa4 {[%emt 0:00:52]} Bxc3 {[%emt 0:10:49]} 17. Qxa7 {[%emt 0:10:39]} Ra8 {[%emt 0:10:47]} 18. Qb7 {[%emt 0:01:00]} d4 {[%emt 0:00:13]} 19. Qe4 {[%emt 0:14:53]} Rxa2 {[%emt 0:07:06]} 20. Bd3 {[%emt 0:05:01]} g6 {[%emt 0:00:07]} 21. Qf4 {[%emt 0:01:18]} Bd2 {[%emt 0:04:12]} 22. Nxd2 {[%emt 0:07:30]} Rxd2 {[%emt 0:00:06]} 23. Rcd1 {[%emt 0:00:28]} dxe3 {[%emt 0:03:31]} 24. Qxe3 {[%emt 0:00:34]} Rxd1 {[%emt 0:00:08]} 25. Rxd1 {[%emt 0:00:06]} Qg5 {[%emt 0:03:15]} 26. Qxb6 {[%emt 0:05:37]} Rd8 {[%emt 0:00:21]} 27. f4 {[%emt 0:00:22]} Qf6 {[%emt 0:02:54]} 28. g3 {[%emt 0:02:03]} Kg7 {[%emt 0:01:45]} 29. Kf2 {[%emt 0:01:36]} Bg4 {[%emt 0:02:13]} 30. Qxf6+ {[%emt 0:00:12]} Kxf6 {[%emt 0:00:03]} 31. Rd2 {[%emt 0:00:09]} Bf5 {[%emt 0:00:05]} 32. Ke3 {[%emt 0:00:29]} Re8+ {[%emt 0:00:18]} 33. Kf2 {[%emt 0:00:29]} Rd8 {[%emt 0:00:03]} 34. Ke3 {[%emt 0:00:05]} h5 {[%emt 0:00:33]} 35. Bc4 {[%emt 0:00:33]} Rxd2 {[%emt 0:02:09]} 36. Kxd2 {[%emt 0:00:02] Ke5 [%clk 00:00:22] [%emt 00:00:28]} 1/2-1/2

[Event "4NCL Div 1 2018-19"]
[Site "Telford"]
[Date "2019.02.10"]
[Round "6.21"]
[White "Stewart, Ashley"]
[Black "Wadsworth, Matthew J"]
[Result "0-1"]
[ECO "A25"]
[WhiteElo "2166"]
[BlackElo "2350"]
[Annotator "NA"]
[PlyCount "144"]
[EventDate "2018.11.10"]
[EventType "team-tourn"]
[EventCountry "GBR"]
[SourceTitle "playchess.com"]
[Source "ChessBase"]
[SourceQuality "1"]
[TimeControl "40/6000+30:3000+30"]

1. c4 {[%emt 0:00:00]} e5 {[%emt 0:02:09]} 2. g3 {[%emt 0:00:00]} Nc6 {[%emt 0:00:06]} 3. Nc3 {[%emt 0:00:16]} Bc5 {[%emt 0:00:18]} 4. Bg2 {[%emt 0:00:36]} a6 {[%emt 0:00:19]} 5. e3 {[%emt 0:00:27]} d6 {[%emt 0:00:31]} 6. Nf3 {[%emt 0:00:40]} Ba7 {[%emt 0:00:33]} 7. d4 {[%emt 0:01:02]} exd4 {[%emt 0:00:54]} 8. Nxd4 {[%emt 0:00:09]} Nxd4 {[%emt 0:00:20]} 9. exd4 {[%emt 0:00:05]} Ne7 {[%emt 0:00:16]} 10. O-O {[%emt 0:02:26]} O-O {[%emt 0:01:12]} 11. b3 {[%emt 0:03:07]} Nf5 {[%emt 0:01:33]} 12. Ne2 {[%emt 0:02:31]} Qf6 {[%emt 0:07:14]} 13. Bb2 {[%emt 0:01:51]} Re8 {[%emt 0:02:16]} 14. Qd2 {[%emt 0:05:16]} Rb8 {[%emt 0:02:40]} 15. Rac1 {[%emt 0:13:03]} Bd7 {[%emt 0:04:30]} 16. c5 {[%emt 0:06:52]} Bb5 {[%emt 0:06:16]} 17. Rfe1 {[%emt 0:05:10]} Bxe2 {[%emt 0:15:44]} 18. Rxe2 {[%emt 0:00:30]} Rxe2 {[%emt 0:00:30]} 19. Qxe2 {[%emt 0:00:08]} Nxd4 {[%emt 0:00:07]} 20. Bxd4 {[%emt 0:11:02]} Qxd4 {[%emt 0:00:07]} 21. Bxb7 {[%emt 0:02:55]} Bxc5 {[%emt 0:03:57]} 22. Bxa6 {[%emt 0:06:26]} h5 {[%emt 0:03:41]} 23. Rc4 {[%emt 0:06:36]} Qa1+ {[%emt 0:00:56]} 24. Kg2 {[%emt 0:00:30]} g6 {[%emt 0:01:41]} 25. Rf4 {[%emt 0:17:45]} Qe5 {[%emt 0:18:38]} 26. Qxe5 dxe5 27. Rc4 {[%emt 0:01:16]} Bd6 {[%emt 0:02:04]} 28. Rc6 {[%emt 0:01:53]} Rb6 {[%emt 0:03:12]} 29. Rxb6 {[%emt 0:00:27]} cxb6 {[%emt 0:00:01]} 30. h3 {[%emt 0:02:28]} Kg7 {[%emt 0:01:14]} 31. g4 {[%emt 0:01:05]} Kh6 {[%emt 0:00:39]} 32. Bc4 {[%emt 0:00:56]} f6 {[%emt 0:01:20]} 33. Kf3 {[%emt 0:04:11]} Kg5 {[%emt 0:01:36]} 34. Be6 {[%emt 0:02:22]} Bc5 {[%emt 0:02:54]} 35. a4 {[%emt 0:04:11]} h4 {[%emt 0:01:42]} 36. Ke2 {[%emt 0:06:29]} Kf4 {[%emt 0:04:44]} 37. Bf7 {[%emt 0:00:31]} g5 {[%emt 0:00:10]} 38. Kf1 {[%emt 0:02:32]} Kf3 {[%emt 0:00:45]} 39. Bd5+ {[%emt 0:01:01]} e4 {[%emt 0:00:00]} 40. Bc6 {[%emt 0:00:40]} Bxf2 {[%emt 0:01:21]} 41. Bxe4+ {[%emt 0:12:50]} Kg3 {[%emt 0:00:07]} 42. b4 {[%emt 0:16:40]} Bd4 {[%emt 0:00:52]} 43. Bg2 {[%emt 0:00:59]} Kh2 {[%emt 0:00:20]} 44. a5 {[%emt 0:00:15]} bxa5 {[%emt 0:00:06]} 45. bxa5 {[%emt 0:00:00]} Ba7 {[%emt 0:00:17]} 46. a6 {[%emt 0:00:07]} Kg3 {[%emt 0:00:07]} 47. Bc6 Kxh3 {[%emt 0:00:06]} 48. Bd7 {[%emt 0:02:56]} Kg3 {[%emt 0:00:06]} 49. Bc8 {[%emt 0:01:22]} h3 {[%emt 0:08:39]} 50. Bd7 Kf3 {[%emt 0:09:47]} 51. Bc8 {[%emt 0:04:55]} h2 {[%emt 0:00:00]} 52. Bb7+ {[%emt 0:00:00]} Kg3 {[%emt 0:00:00]} 53. Bc6 {[%emt 0:00:00]} Bg1 {[%emt 0:00:00]} 54. Bb7 {[%emt 0:01:28]} Bb6 {[%emt 0:00:00]} 55. Bc6 {[%emt 0:00:31]} Ba7 {[%emt 0:00:45]} 56. Bb7 {[%emt 0:02:05]} Kxg4 {[%emt 0:00:41]} 57. Kg2 {[%emt 0:00:14]} h1=Q+ {[%emt 0:00:42]} 58. Kxh1 {[%emt 0:00:01]} Kg3 {[%emt 0:00:06]} 59. Bc8 {[%emt 0:04:17]} g4 {[%emt 0:00:41]} 60. Bd7 {[%emt 0:02:19]} Be3 {[%emt 0:00:34]} 61. Bc8 {[%emt 0:00:58]} Kf3 {[%emt 0:00:16]} 62. Bd7 {[%emt 0:03:08]} g3 {[%emt 0:00:25]} 63. Bc6+ {[%emt 0:02:23]} Kf2 {[%emt 0:00:01]} 64. Bg2 {[%emt 0:03:39]} Ba7 {[%emt 0:00:02]} 65. Bf3 {[%emt 0:00:39]} Bb8 {[%emt 0:00:02]} 66. Bd5 {[%emt 0:00:33]} f5 {[%emt 0:00:02]} 67. Bc6 {[%emt 0:00:50]} f4 {[%emt 0:00:03]} 68. a7 {[%emt 0:00:41]} Bxa7 {[%emt 0:00:06]} 69. Bf3 {[%emt 0:00:10]} Bb8 {[%emt 0:00:01]} 70. Bg2 {[%emt 0:00:35]} f3 {[%emt 0:00:09]} 71. Bxf3 {[%emt 0:00:56]} Kxf3 {[%emt 0:00:38]} 72. Kg1 Ba7+ {[%emt 0:00:29]} 0-1

[Event "4NCL Div 1 2018-19"]
[Site "Telford"]
[Date "2019.02.10"]
[Round "6.22"]
[White "Kilpatrick, Callum"]
[Black "Willow, Jonah B"]
[Result "1/2-1/2"]
[ECO "B47"]
[WhiteElo "2353"]
[BlackElo "2224"]
[Annotator "NA"]
[PlyCount "74"]
[EventDate "2018.11.10"]
[EventType "team-tourn"]
[EventCountry "GBR"]
[SourceTitle "playchess.com"]
[Source "ChessBase"]
[SourceQuality "1"]
[TimeControl "40/6000+30:3000+30"]

1. e4 {[%emt 0:02:09]} c5 {[%emt 0:00:00]} 2. Nf3 {[%emt 0:00:18]} e6 {[%emt 0:00:00]} 3. d4 {[%emt 0:00:28]} cxd4 {[%emt 0:00:00]} 4. Nxd4 {[%emt 0:00:06]} Nc6 {[%emt 0:00:14]} 5. Nc3 {[%emt 0:00:24]} Qc7 {[%emt 0:00:06]} 6. Qd3 {[%emt 0:00:44]} a6 {[%emt 0:02:21]} 7. Nxc6 {[%emt 0:00:44]} Qxc6 {[%emt 0:02:49]} 8. Be2 {[%emt 0:00:36]} Bc5 {[%emt 0:10:12]} 9. O-O {[%emt 0:08:56]} Ne7 {[%emt 0:01:45]} 10. Be3 {[%emt 0:03:39]} O-O {[%emt 0:04:30]} 11. Rad1 {[%emt 0:16:19]} Bxe3 {[%emt 0:20:47]} 12. Qxe3 {[%emt 0:00:07]} Rd8 {[%emt 0:01:29]} 13. e5 {[%emt 0:07:29]} d5 {[%emt 0:07:27]} 14. exd6 {[%emt 0:19:23]} Nd5 {[%emt 0:21:48]} 15. Qg5 {[%emt 0:15:31]} Qxd6 {[%emt 0:03:37]} 16. Ne4 {[%emt 0:00:38]} Qf8 {[%emt 0:02:48]} 17. c4 {[%emt 0:01:18]} f5 {[%emt 0:07:33]} 18. cxd5 {[%emt 0:04:47]} fxe4 {[%emt 0:00:04]} 19. Bc4 {[%emt 0:02:28]} Re8 {[%emt 0:02:21]} 20. d6 {[%emt 0:05:01]} Bd7 {[%emt 0:00:36]} 21. Qe5 {[%emt 0:01:57]} b5 {[%emt 0:04:31]} 22. Bb3 {[%emt 0:00:26]} Qf6 {[%emt 0:01:13]} 23. Qxe4 {[%emt 0:01:00]} Qxb2 {[%emt 0:00:52]} 24. Qb7 {[%emt 0:02:16]} Red8 {[%emt 0:01:42]} 25. Rc1 {[%emt 0:05:41]} Qe5 {[%emt 0:02:35]} 26. Rfe1 {[%emt 0:02:28]} Qxd6 {[%emt 0:02:33]} 27. Rcd1 {[%emt 0:04:08]} Bc6 {[%emt 0:02:04]} 28. Qb6 {[%emt 0:01:01]} Bd5 {[%emt 0:00:25]} 29. Qxd6 {[%emt 0:03:50]} Rxd6 {[%emt 0:00:06]} 30. Rxe6 {[%emt 0:00:15]} Bxe6 {[%emt 0:02:55]} 31. Rxd6 {[%emt 0:00:05]} Bxb3 {[%emt 0:00:04]} 32. axb3 {[%emt 0:00:03]} a5 {[%emt 0:02:49]} 33. Rd3 {[%emt 0:00:20]} Rc8 {[%emt 0:02:23]} 34. Kf1 {[%emt 0:00:36]} Rc2 {[%emt 0:00:30]} 35. Rd5 {[%emt 0:01:13]} a4 {[%emt 0:00:44]} 36. bxa4 {[%emt 0:00:05]} bxa4 {[%emt 0:00:03]} 37. Ra5 {[%emt 0:00:08]} Ra2 {[%emt 0:00:06]} 1/2-1/2

[Event "4NCL Div 1 2018-19"]
[Site "Telford"]
[Date "2019.02.10"]
[Round "6.22"]
[White "Tyomkyn, Mikhail"]
[Black "Jones, Steven A"]
[Result "1/2-1/2"]
[ECO "A07"]
[WhiteElo "2115"]
[BlackElo "2150"]
[Annotator "NA"]
[PlyCount "108"]
[EventDate "2018.11.10"]
[EventType "team-tourn"]
[EventCountry "GBR"]
[SourceTitle "playchess.com"]
[Source "ChessBase"]
[SourceQuality "1"]
[TimeControl "40/6000+30:3000+30"]

1. Nf3 {[%emt 0:00:00]} Nf6 {[%emt 0:01:12]} 2. g3 {[%emt 0:00:00]} d5 {[%emt 0:02:22]} 3. Bg2 {[%emt 0:00:04]} e6 {[%emt 0:02:44]} 4. O-O {[%emt 0:00:21]} Bd6 {[%emt 0:01:44]} 5. d3 {[%emt 0:03:30]} O-O {[%emt 0:04:03]} 6. Nbd2 {[%emt 0:00:44]} Nbd7 {[%emt 0:05:49]} 7. e4 {[%emt 0:02:33]} c6 {[%emt 0:01:23]} 8. Re1 {[%emt 0:10:39]} e5 {[%emt 0:06:59]} 9. Nh4 {[%emt 0:03:14]} Re8 {[%emt 0:02:26]} 10. Nf5 {[%emt 0:14:26]} Bf8 {[%emt 0:00:46]} 11. Nf1 {[%emt 0:07:34]} Nc5 {[%emt 0:06:11]} 12. Qf3 {[%emt 0:09:06]} Bxf5 {[%emt 0:10:58]} 13. exf5 {[%emt 0:01:01]} e4 {[%emt 0:04:55]} 14. dxe4 {[%emt 0:00:40]} Ncxe4 {[%emt 0:07:09]} 15. Be3 Qa5 {[%emt 0:03:46]} 16. c3 Qb5 {[%emt 0:05:31]} 17. Rab1 {[%emt 0:15:51]} Bc5 {[%emt 0:10:19]} 18. Qd1 {[%emt 0:05:08]} Qb6 {[%emt 0:00:00]} 19. Bxc5 {[%emt 0:08:00]} Qxc5 {[%emt 0:00:00]} 20. Ne3 {[%emt 0:03:10]} Re7 {[%emt 0:08:25]} 21. Bxe4 {[%emt 0:05:40]} Rxe4 {[%emt 0:00:00]} 22. Qd3 {[%emt 0:01:15]} Rae8 {[%emt 0:00:00]} 23. h3 {[%emt 0:00:54]} Kf8 {[%emt 0:00:00]} 24. Kg2 {[%emt 0:02:02]} Nd7 {[%emt 0:02:03]} 25. Nc2 {[%emt 0:03:36]} Rxe1 {[%emt 0:00:26]} 26. Rxe1 {[%emt 0:00:09]} Rxe1 {[%emt 0:00:08]} 27. Nxe1 {[%emt 0:00:02]} Ne5 {[%emt 0:00:14]} 28. Qe2 {[%emt 0:00:23]} d4 {[%emt 0:02:22]} 29. cxd4 {[%emt 0:01:15]} Qxd4 {[%emt 0:00:10]} 30. b3 {[%emt 0:00:48]} Qd5+ {[%emt 0:00:21]} 31. Kh2 {[%emt 0:00:54]} f6 {[%emt 0:01:35]} 32. f4 {[%emt 0:02:51]} Nd7 {[%emt 0:04:52]} 33. Qe6 {[%emt 0:03:24]} Nb6 {[%emt 0:03:47]} 34. g4 {[%emt 0:00:35]} a5 {[%emt 0:01:30]} 35. Ng2 {[%emt 0:00:35]} a4 {[%emt 0:00:56]} 36. bxa4 {[%emt 0:00:07]} Qxe6 {[%emt 0:00:57]} 37. fxe6 {[%emt 0:00:01]} Ke7 {[%emt 0:00:20]} 38. a5 {[%emt 0:00:58]} Nc4 {[%emt 0:02:03]} 39. a6 {[%emt 0:01:28]} bxa6 {[%emt 0:00:02]} 40. f5 {[%emt 0:00:04]} Nd6 {[%emt 0:02:45]} 41. Kg3 {[%emt 0:55:21]} Ne4+ {[%emt 0:53:39]} 42. Kf4 {[%emt 0:00:57]} Nc3 {[%emt 0:01:22]} 43. a3 {[%emt 0:00:22]} Nb5 {[%emt 0:04:44]} 44. a4 {[%emt 0:00:00]} Nc3 {[%emt 0:00:00]} 45. a5 {[%emt 0:00:00]} Nb5 {[%emt 0:00:00]} 46. Ke4 {[%emt 0:00:00]} Nd6+ {[%emt 0:00:12]} 47. Kd4 {[%emt 0:00:00]} Nb7 {[%emt 0:00:00]} 48. Ne3 {[%emt 0:00:00]} Nxa5 {[%emt 0:00:00]} 49. Kc5 {[%emt 0:00:00]} Nb3+ {[%emt 0:00:00]} 50. Kxc6 {[%emt 0:00:00]} Nd4+ {[%emt 0:00:11]} 51. Kd5 {[%emt 0:00:00]} Nb3 {[%emt 0:00:00]} 52. Kc6 {[%emt 0:00:00]} Nd4+ {[%emt 0:00:17]} 53. Kd5 Nb3 {[%emt 0:00:00]} 54. Kc6 {[%emt 0:00:00]} Na5+ 1/2-1/2

[Event "4NCL Div 1 2018-19"]
[Site "Telford"]
[Date "2019.02.10"]
[Round "6.23"]
[White "Redmond, John P."]
[Black "Hansen, Hans-Peter"]
[Result "1/2-1/2"]
[ECO "A30"]
[WhiteElo "2175"]
[BlackElo "2192"]
[Annotator "NA"]
[PlyCount "113"]
[EventDate "2018.11.10"]
[EventType "team-tourn"]
[EventCountry "GBR"]
[SourceTitle "playchess.com"]
[Source "ChessBase"]
[SourceQuality "1"]
[TimeControl "40/6000+30:3000+30"]

1. c4 {[%emt 0:01:11]} c5 {[%emt 0:00:27]} 2. b3 {[%emt 0:00:11]} Nf6 {[%emt 0:02:11]} 3. Bb2 {[%emt 0:00:07]} e6 {[%emt 0:00:03]} 4. Nf3 {[%emt 0:00:17]} Be7 {[%emt 0:01:50]} 5. g3 {[%emt 0:00:12]} b6 {[%emt 0:01:33]} 6. Bg2 {[%emt 0:00:08]} Bb7 {[%emt 0:00:03]} 7. O-O {[%emt 0:00:19]} O-O {[%emt 0:00:08]} 8. Nc3 {[%emt 0:00:13]} d6 {[%emt 0:02:37]} 9. d4 {[%emt 0:14:30]} cxd4 {[%emt 0:00:38]} 10. Qxd4 {[%emt 0:00:07]} Nbd7 {[%emt 0:04:45]} 11. e4 {[%emt 0:14:06]} a6 {[%emt 0:04:15]} 12. Rfe1 {[%emt 0:01:15]} Qc7 {[%emt 0:01:38]} 13. Rac1 {[%emt 0:00:25]} Rad8 {[%emt 0:01:58]} 14. Qd3 {[%emt 0:05:52]} Rfe8 {[%emt 0:03:27]} 15. Nd4 {[%emt 0:02:00]} Bf8 {[%emt 0:02:04]} 16. Qb1 {[%emt 0:03:32]} Qb8 {[%emt 0:03:12]} 17. Re2 {[%emt 0:13:52]} Qa7 {[%emt 0:08:25]} 18. Rd1 {[%emt 0:01:15]} Qa8 {[%emt 0:03:09]} 19. Rde1 {[%emt 0:00:26]} g6 {[%emt 0:05:22]} 20. Qd1 {[%emt 0:04:43]} Bg7 {[%emt 0:03:53]} 21. Ba1 {[%emt 0:02:49]} Nc5 {[%emt 0:05:21]} 22. Nc2 {[%emt 0:07:19]} Qb8 {[%emt 0:05:58]} 23. Rd2 {[%emt 0:03:19]} Qa8 {[%emt 0:17:13]} 24. Rde2 {[%emt 0:00:42]} Qb8 {[%emt 0:02:20]} 25. h3 {[%emt 0:01:32]} Ba8 {[%emt 0:05:30]} 26. Rd2 {[%emt 0:04:01]} Bh6 {[%emt 0:02:19]} 27. Rde2 {[%emt 0:02:45]} Bg7 {[%emt 0:00:05]} 28. Nd4 {[%emt 0:00:47]} Ncd7 {[%emt 0:02:53]} 29. Nc2 {[%emt 0:05:58]} Nc5 {[%emt 0:00:36]} 30. Nb4 {[%emt 0:03:46]} Bb7 {[%emt 0:00:36]} 31. a4 {[%emt 0:00:51]} Qc7 {[%emt 0:01:51]} 32. Nba2 {[%emt 0:01:47]} Rc8 {[%emt 0:02:16]} 33. Rd2 {[%emt 0:02:10]} Red8 {[%emt 0:00:52]} 34. Bb2 {[%emt 0:06:39]} Bh6 {[%emt 0:04:33]} 35. Rde2 {[%emt 0:02:41]} Bg7 {[%emt 0:00:39]} 36. Nc1 {[%emt 0:01:00]} Qb8 {[%emt 0:02:29]} 37. Rd2 {[%emt 0:00:57]} Bh6 {[%emt 0:00:20]} 38. Rde2 {[%emt 0:01:50]} Bg7 {[%emt 0:00:04]} 39. Qd2 {[%emt 0:01:33]} Bc6 {[%emt 0:02:32]} 40. Qd1 {[%emt 0:02:17]} b5 {[%emt 0:04:10]} 41. axb5 {[%emt 0:06:37]} axb5 {[%emt 0:00:13]} 42. cxb5 {[%emt 0:00:13]} Bxb5 {[%emt 0:00:28]} 43. Nxb5 {[%emt 0:00:17]} Qxb5 {[%emt 0:00:02]} 44. Rd2 {[%emt 0:01:02]} Ne8 {[%emt 0:10:23]} 45. Bxg7 {[%emt 0:04:11]} Kxg7 {[%emt 0:00:08]} 46. e5 {[%emt 0:27:40]} d5 {[%emt 0:02:01]} 47. Rd4 {[%emt 0:00:09]} Nd7 {[%emt 0:13:12]} 48. Qd2 {[%emt 0:01:58]} Qc5 {[%emt 0:04:47]} 49. Rh4 {[%emt 0:03:35]} h5 {[%emt 0:02:40]} 50. Qg5 {[%emt 0:00:30]} Qc3 {[%emt 0:08:14]} 51. Nd3 {[%emt 0:06:45]} Kf8 {[%emt 0:05:33]} 52. Bf1 {[%emt 0:01:13]} Ng7 {[%emt 0:02:32]} 53. Rf4 {[%emt 0:00:59]} Kg8 {[%emt 0:00:54]} 54. Qe7 {[%emt 0:00:43]} Nf5 {[%emt 0:00:29]} 55. Qg5 {[%emt 0:00:14]} Nf8 {[%emt 0:01:05]} 56. Rf3 {[%emt 0:01:50]} Nh7 {[%emt 0:00:56]} 57. Qc1 {[%emt 0:00:33]} 1/2-1/2

[Event "4NCL Div 1 2018-19"]
[Site "Telford"]
[Date "2019.02.10"]
[Round "6.23"]
[White "Sygnowski, Tomasz"]
[Black "Golding, Alex"]
[Result "0-1"]
[ECO "B90"]
[WhiteElo "2153"]
[BlackElo "2263"]
[Annotator "NA"]
[PlyCount "74"]
[EventDate "2018.11.10"]
[EventType "team-tourn"]
[EventCountry "GBR"]
[SourceTitle "playchess.com"]
[Source "ChessBase"]
[SourceQuality "1"]
[TimeControl "40/6000+30:3000+30"]

1. e4 {[%emt 0:01:01]} c5 {[%emt 0:00:00]} 2. Nf3 {[%emt 0:00:43]} d6 {[%emt 0:00:00]} 3. Nc3 {[%emt 0:00:33]} Nf6 {[%emt 0:00:00]} 4. d4 {[%emt 0:00:47]} cxd4 {[%emt 0:00:00]} 5. Nxd4 {[%emt 0:00:04]} a6 {[%emt 0:00:06]} 6. a3 {[%emt 0:02:40]} g6 {[%emt 0:00:55]} 7. Bc4 {[%emt 0:00:16]} Bg7 {[%emt 0:00:08]} 8. Bb3 {[%emt 0:01:33]} O-O {[%emt 0:01:09]} 9. f3 {[%emt 0:00:17]} Qc7 {[%emt 0:01:20]} 10. Be3 {[%emt 0:00:16]} Nc6 {[%emt 0:00:15]} 11. Nxc6 {[%emt 0:00:16]} bxc6 {[%emt 0:01:42]} 12. Qd2 {[%emt 0:00:11]} Rd8 {[%emt 0:00:22]} 13. O-O-O {[%emt 0:01:06]} Be6 {[%emt 0:01:18]} 14. Bxe6 {[%emt 0:05:47]} fxe6 {[%emt 0:00:04]} 15. e5 {[%emt 0:10:37]} Nd5 {[%emt 0:01:10]} 16. exd6 {[%emt 0:03:56]} exd6 {[%emt 0:00:26]} 17. Bd4 {[%emt 0:00:56]} Rab8 {[%emt 0:02:37]} 18. Rhe1 {[%emt 0:04:37]} e5 {[%emt 0:00:34]} 19. Nxd5 {[%emt 0:00:13]} cxd5 {[%emt 0:00:06]} 20. Bc3 {[%emt 0:18:02]} d4 {[%emt 0:00:06]} 21. Bb4 {[%emt 0:06:37]} Qb6 {[%emt 0:02:16]} 22. b3 {[%emt 0:08:42]} Rdc8 {[%emt 0:00:20]} 23. Kb1 {[%emt 0:00:44]} d5 {[%emt 0:02:22]} 24. Ka2 {[%emt 0:04:27]} Rc6 {[%emt 0:06:44]} 25. Rc1 {[%emt 0:05:31]} Rbc8 {[%emt 0:01:10]} 26. Kb1 {[%emt 0:01:26]} Re6 {[%emt 0:03:21]} 27. Ba5 {[%emt 0:00:52]} Qb7 {[%emt 0:00:52]} 28. Qb4 {[%emt 0:01:13]} Qd7 {[%emt 0:00:42]} 29. Qd2 {[%emt 0:08:03]} e4 30. fxe4 {[%emt 0:01:26]} dxe4 {[%emt 0:01:25]} 31. Re2 {[%emt 0:03:32]} Qd5 {[%emt 0:03:11]} 32. Ka2 {[%emt 0:01:44]} e3 {[%emt 0:04:18]} 33. Qe1 {[%emt 0:02:02]} d3 {[%emt 0:03:37]} 34. cxd3 {[%emt 0:01:31]} Rxc1 {[%emt 0:00:07]} 35. Qxc1 {[%emt 0:01:11]} Qxa5 {[%emt 0:00:06]} 36. Rxe3 {[%emt 0:00:43]} Rxe3 {[%emt 0:00:08]} 37. Qxe3 {[%emt 0:00:04]} h5 {[%emt 0:01:03]} 0-1

[Event "4NCL Div 1 2018-19"]
[Site "Telford"]
[Date "2019.02.10"]
[Round "6.24"]
[White "Ciuksyte, Dagne"]
[Black "Manelidou, Maria"]
[Result "1-0"]
[ECO "C54"]
[WhiteElo "2303"]
[BlackElo "2069"]
[Annotator "NA"]
[PlyCount "83"]
[EventDate "2018.11.10"]
[EventType "team-tourn"]
[EventCountry "GBR"]
[SourceTitle "playchess.com"]
[Source "ChessBase"]
[SourceQuality "1"]
[TimeControl "40/6000+30:3000+30"]

1. e4 {[%emt 0:00:00]} e5 {[%emt 0:00:00]} 2. d4 {[%emt 0:01:02]} exd4 {[%emt 0:00:00]} 3. Nf3 {[%emt 0:00:05]} Nc6 {[%emt 0:00:59]} 4. Bc4 {[%emt 0:00:21]} Bc5 {[%emt 0:11:26]} 5. c3 {[%emt 0:02:56]} Nf6 {[%emt 0:03:06]} 6. e5 {[%emt 0:00:58]} d5 {[%emt 0:08:17]} 7. Bb5 {[%emt 0:02:33]} Ne4 {[%emt 0:05:10]} 8. cxd4 {[%emt 0:00:35]} Bb4+ {[%emt 0:02:22]} 9. Bd2 {[%emt 0:03:58]} Nxd2 {[%emt 0:02:15]} 10. Nbxd2 {[%emt 0:02:29]} O-O {[%emt 0:10:51]} 11. Bxc6 {[%emt 0:05:35]} bxc6 {[%emt 0:00:07]} 12. O-O {[%emt 0:00:04]} Be7 {[%emt 0:07:01]} 13. Rc1 {[%emt 0:03:06]} Rb8 {[%emt 0:02:57]} 14. Qc2 {[%emt 0:08:17]} Rb6 {[%emt 0:02:42]} 15. Nb3 {[%emt 0:07:46]} Bg4 {[%emt 0:07:41]} 16. Nfd2 {[%emt 0:01:03]} Qc8 {[%emt 0:13:56]} 17. Na5 {[%emt 0:08:38]} Bd7 {[%emt 0:12:24]} 18. a3 {[%emt 0:02:17]} Re8 {[%emt 0:04:24]} 19. b4 {[%emt 0:01:05]} f6 {[%emt 0:06:10]} 20. f4 {[%emt 0:01:44]} fxe5 {[%emt 0:00:11]} 21. fxe5 {[%emt 0:00:07]} Bg5 {[%emt 0:00:16]} 22. Rce1 {[%emt 0:02:58]} Re6 {[%emt 0:02:11]} 23. Qf5 {[%emt 0:08:51]} h6 {[%emt 0:00:21]} 24. Qf7+ {[%emt 0:01:18]} Kh8 {[%emt 0:00:56]} 25. Ndb3 {[%emt 0:00:59]} Be7 {[%emt 0:01:33]} 26. Re3 {[%emt 0:08:30]} Be8 {[%emt 0:00:36]} 27. Qf2 {[%emt 0:00:18]} Bg6 {[%emt 0:01:35]} 28. Rg3 {[%emt 0:01:47]} Kh7 {[%emt 0:00:43]} 29. Nc5 {[%emt 0:03:39]} Bxc5 {[%emt 0:00:12]} 30. dxc5 {[%emt 0:00:08]} Rb8 {[%emt 0:00:08]} 31. Nb3 {[%emt 0:00:23]} Rxe5 {[%emt 0:00:40]} 32. Rxg6 {[%emt 0:01:50]} Kxg6 {[%emt 0:00:18]} 33. Qg3+ {[%emt 0:00:30]} Rg5 {[%emt 0:00:11]} 34. Qd3+ {[%emt 0:00:14]} Kh5 {[%emt 0:00:38]} 35. Rf3 {[%emt 0:02:29]} Rg4 {[%emt 0:01:44]} 36. Nd4 {[%emt 0:04:52]} Re4 {[%emt 0:02:19]} 37. Nxc6 {[%emt 0:02:02]} Qe6 {[%emt 0:01:07]} 38. Nxb8 {[%emt 0:00:30]} d4 {[%emt 0:00:53]} 39. Rf1 {[%emt 0:05:20]} Kg5 {[%emt 0:00:37]} 40. Nd7 {[%emt 0:01:10]} Rg4 {[%emt 0:00:30]} 41. Nf8 {[%emt 0:50:48]} Qd5 {[%emt 0:05:22]} 42. Nh7+ {[%emt 0:00:00]} 1-0